bitfinex-derivatives/quotes_SOLF0:USTF0_20260311
["timestamp","ask_amount","ask_price","bid_price","bid_amount"]
[1773249655116,33.81965631,87.172,87.101,10.18348423]
[1773249655314,33.81965631,87.172,87.102,10.18348423]
[1773249655514,33.81965631,87.168,87.115,10.329]
[1773249655915,33.80816071,87.165,87.107,10.33]
[1773249656112,33.80816071,87.165,87.069,34.51]
[1773249656113,33.80816071,87.165,87.08,6.14402792]
[1773249656316,33.80816071,87.165,87.059,14.46]
[1773249656521,33.80816071,87.165,87.06,10.20192097]
[1773249656723,0.00062102,87.181,87.061,10.20192097]
[1773249656724,33.80816071,87.135,87.061,10.20192097]
[1773249657024,33.80928287,87.133,87.03,6.14402792]
[1773249657319,6.14402792,87.14,87.054,10.336]
[1773249657320,44.13928287,87.108,87.054,10.336]
[1773249657516,33.80928287,87.107,87.055,10.22410001]
[1773249657723,33.80928287,87.106,87.055,10.22410001]
[1773249657923,33.80928287,87.105,87.056,10.22410001]
[1773249658117,33.80928287,87.105,87.057,10.22410001]
[1773249658318,33.29290976,87.099,87.03,6.14402792]
[1773249658523,33.29290976,87.099,87.031,10.25245091]
[1773249658722,33.29290976,87.099,87.032,10.25245091]
[1773249658922,33.29290976,87.099,87.033,10.25245091]
[1773249659113,33.29290976,87.099,87.03,6.14402792]
[1773249659114,33.29290976,87.099,87.034,10.25245091]
[1773249659422,33.29290976,87.099,87.041,10.338]
[1773249659618,33.29290976,87.099,87.042,10.25245091]
[1773249659818,33.29290976,87.099,87.043,10.25245091]
[1773249660014,33.29290976,87.099,87.049,10.337]
[1773249660224,33.29290976,87.099,87.05,10.25245091]
[1773249660419,33.29290976,87.099,87.051,10.25245091]
[1773249660618,33.29290976,87.099,87.052,10.25245091]
[1773249660818,33.29290976,87.099,87.054,10.336]
[1773249661123,33.29290976,87.099,87.055,10.25245091]
[1773249661425,33.29290976,87.099,87.056,20.58845091]
[1773249661619,33.29290976,87.099,87.025,14.46]
[1773249661620,33.57672346,87.123,87.057,10.25245091]
[1773249661819,33.57672346,87.123,87.058,10.25245091]
[1773249662022,33.57672346,87.123,87.05,6.14402792]
[1773249662023,33.57764462,87.121,87.059,10.25245091]
[1773249662224,33.57764462,87.121,87.06,10.25245091]
[1773249662418,33.57764462,87.121,87.061,10.25245091]
[1773249662618,33.57764462,87.118,87.062,10.25245091]
[1773249662814,33.57764462,87.118,87.063,10.25245091]
[1773249663024,33.57764462,87.118,87.064,10.25245091]
[1773249663226,33.57891228,87.098,87.065,10.25245091]
[1773249663421,14.46,87.156,87.066,10.25245091]
[1773249663724,33.57891228,87.154,87.067,10.25245091]
[1773249663921,33.57891228,87.154,87.068,10.25245091]
[1773249664126,33.62483912,87.116,87.069,10.25245091]
[1773249664322,33.62483912,87.116,87.07,10.25245091]
[1773249664523,33.62483912,87.116,87.012,13.59637676]
[1773249664524,33.62483912,87.116,87.071,0.00045091]
[1773249664721,33.62483912,87.116,87.01,6.14402792]
[1773249664722,33.62483912,87.094,87.021,10.41531947]
[1773249665021,33.62483912,87.094,87.03,16.55934739]
[1773249665326,33.62483912,87.094,87.04,10.41531947]
[1773249665526,33.62483912,87.094,87.036,10.41531947]
[1773249665823,33.62626914,87.119,87.062,10.41531947]
[1773249666025,33.62626914,87.119,87.06,10.41531947]
[1773249666224,33.62626914,87.119,87.081,10.41531947]
[1773249666530,33.62626914,87.119,87.076,10.41531947]
[1773249666724,33.62626914,87.119,87.074,10.41531947]
[1773249666918,33.62626914,87.119,87.077,10.41531947]
[1773249667118,33.62670936,87.108,87.076,0.00031947]
[1773249667323,33.62670936,87.108,87.05,13.59637676]
[1773249667524,33.62670936,87.108,87.046,13.59637676]
[1773249667831,33.62670936,87.096,87.044,13.59637676]
[1773249668035,33.62670936,87.096,87.034,13.59637676]
[1773249668232,33.62670936,87.096,87.019,13.59637676]
[1773249668532,33.62670936,87.096,87.018,13.59637676]
[1773249668934,33.5634847,87.078,87.022,13.59637676]
[1773249669134,33.5634847,87.078,86.996,270.66576738]
[1773249669135,33.5634847,87.078,87.016,13.59637676]
[1773249669429,33.5634847,87.078,86.996,270.66576738]
[1773249669430,33.5634847,87.078,87.014,13.59637676]
[1773249670130,10.335,87.069,87.014,13.59637676]
[1773249670327,33.5782066,87.068,87.012,13.59637676]
[1773249670531,33.5782066,87.068,86.998,20.40270923]
[1773249670532,33.5782066,87.068,87.006,13.59637676]
[1773249670729,33.5782066,87.044,86.998,13.59637676]
[1773249670929,33.57933027,87.176,87.02,6.14402792]
[1773249671132,33.57933027,87.149,87.04,19.74040468]
[1773249671332,33.57933027,87.149,87.041,13.59637676]
[1773249671534,33.57933027,87.116,87.045,13.59637676]
[1773249671937,33.57933027,87.116,87.04,6.14402792]
[1773249672133,33.59004326,87.099,87.042,10.338]
[1773249672530,33.59004326,87.099,87.05,10.337]
[1773249672829,33.59004326,87.099,87.039,13.59637676]
[1773249673035,33.59004326,87.099,87.034,13.59637676]
[1773249673237,33.59117434,87.088,87.034,10.339]
[1773249674035,33.57809277,87.107,87.05,6.14402792]
[1773249675342,33.57809277,87.107,87.062,10.335]
[1773249675535,33.57809277,87.107,87.05,6.14402792]
[1773249676139,43.91226643,87.105,87.05,16.48102792]
[1773249676540,33.58226643,87.105,87.05,6.14402792]
[1773249677440,33.58226643,87.105,87.056,10.336]
[1773249677941,33.58226643,87.105,87.063,10.335]
[1773249678844,291.0,87.163,87.079,10.333]
[1773249678845,33.60027498,87.124,87.079,10.333]
[1773249679036,33.60027498,87.124,87.07,6.14402792]
[1773249679643,33.60027498,87.149,87.09,6.14402792]
[1773249680238,33.60069795,87.173,87.09,6.14402792]
[1773249680439,33.60069795,87.173,87.084,14.46]
[1773249680440,33.60069795,87.173,87.11,6.14402792]
[1773249680641,33.60069795,87.173,87.13,6.14402792]
[1773249680839,33.60069795,87.173,87.125,10.328]
[1773249681036,33.60069795,87.173,87.117,13.59637676]
[1773249681234,33.60069795,87.173,87.13,6.14402792]
[1773249682038,33.60069795,87.173,87.113,13.59637676]
[1773249682344,33.60069795,87.173,87.114,10.329]
[1773249682536,33.60069795,87.173,87.11,6.14402792]
[1773249682732,33.60069795,87.173,87.106,13.59637676]
[1773249682936,33.60069795,87.173,87.098,13.59637676]
[1773249683141,33.60069795,87.173,87.102,13.59637676]
[1773249683344,33.60069795,87.173,87.101,13.59637676]
[1773249683536,33.60069795,87.173,87.11,6.14402792]
[1773249684345,33.60069795,87.173,87.115,10.329]
[1773249686548,21.47318846,87.149,87.018,20.682]
[1773249686846,21.47363802,87.147,87.05,6.14402792]
[1773249687147,21.47363802,87.147,87.09,6.14402792]
[1773249687347,21.47363802,87.147,87.07,6.14402792]
[1773249688842,31.81978285,87.138,87.07,6.14402792]
[1773249689447,10.327,87.131,87.071,10.334]
[1773249689647,21.49450863,87.131,87.07,6.14402792]
[1773249689843,31.82150863,87.131,87.07,6.14402792]
[1773249690346,21.49450863,87.131,87.07,6.14402792]
[1773249690748,21.49450863,87.131,87.078,10.333]
[1773249690949,21.49450863,87.131,87.065,14.46]
[1773249691443,21.49450863,87.131,87.07,6.14402792]
[1773249692342,21.64840956,87.129,87.065,14.46]
[1773249693847,10.328,87.128,87.076,10.334]
[1773249694147,14.46,87.172,87.05,6.14402792]
[1773249694148,21.66266307,87.127,87.05,6.14402792]
[1773249694548,21.66266307,87.127,87.07,6.14402792]
[1773249695451,21.66266307,87.127,87.082,10.333]
[1773249695647,21.66266307,87.127,87.05,6.14402792]
[1773249695848,21.66266307,87.127,87.051,14.46]
[1773249696443,21.6756564,87.126,87.06,10.336]
[1773249696748,21.6756564,87.175,87.07,6.14402792]
[1773249696948,21.67697625,87.144,87.084,10.333]
[1773249697452,21.67697625,87.142,87.07,6.14402792]
[1773249697653,21.67697625,87.189,87.07,6.14356434]
[1773249697852,21.67697625,87.189,87.071,34.51]
[1773249698052,6.14356434,87.19,87.071,34.51]
[1773249698053,21.68206961,87.171,87.104,10.33]
[1773249698351,21.68206961,87.171,87.071,34.51]
[1773249698552,21.68206961,87.171,87.09,6.14356434]
[1773249699353,21.68336745,87.168,87.11,10.33]
[1773249700554,21.71395211,87.159,87.06,6.14356434]
[1773249701155,21.71395211,87.159,87.112,10.329]
[1773249701353,21.71395211,87.159,87.08,6.14356434]
[1773249701553,21.71395211,87.159,87.111,10.33]
[1773249703052,21.71395211,87.159,87.119,10.329]
[1773249704656,10.32162102,87.181,87.127,10.328]
[1773249704657,21.70058615,87.18,87.127,10.328]
[1773249704955,21.70181357,87.177,87.118,10.329]
[1773249705556,21.70181357,87.175,87.118,10.329]
[1773249705757,21.70181357,87.175,87.109,10.33]
[1773249706559,21.70181357,87.175,87.124,10.328]
[1773249706761,21.70181357,87.175,87.1,6.14356434]
[1773249708059,21.5564922,87.161,87.106,10.33]
[1773249708256,21.5564922,87.161,87.1,6.14356434]
[1773249709466,21.5564922,87.161,87.113,10.329]
[1773249709859,21.5564922,87.161,87.1,6.14356434]
[1773249711564,21.5564922,87.161,87.125,10.328]
[1773249712060,21.5564922,87.161,87.093,20.81577166]
[1773249712260,21.5564922,87.161,87.08,6.14356434]
[1773249712663,21.55367955,87.159,87.103,10.33]
[1773249712966,21.55367955,87.159,87.072,20.81577166]
[1773249713166,21.55367955,87.159,87.063,14.46]
[1773249713362,21.5543393,87.146,87.094,10.332]
[1773249714166,21.5543393,87.146,87.104,10.33]
[1773249715067,21.5543393,87.146,87.08,26.959336]
[1773249715262,21.5543393,87.146,87.087,20.81577166]
[1773249715467,21.5543393,87.146,87.088,20.81577166]
[1773249715868,21.5543393,87.146,87.069,20.81577166]
[1773249716167,21.5543393,87.146,87.066,14.46]
[1773249716367,21.56832436,87.127,87.065,20.81577166]
[1773249716577,21.56832436,87.127,87.071,13.92076823]
[1773249716768,21.56832436,87.127,87.07,13.92076823]
[1773249717160,21.56898769,87.115,87.062,271.78664281]
[1773249717469,21.56898769,87.115,87.07,13.92076823]
[1773249717870,21.56898769,87.115,87.075,10.334]
[1773249719267,21.5427641,87.133,87.073,13.92076823]
[1773249719470,21.5427641,87.133,87.078,13.92076823]
[1773249720170,21.5427641,87.133,87.085,10.333]
[1773249721466,21.5427641,87.133,87.08,13.92076823]
[1773249721667,21.5427641,87.133,87.096,13.92076823]
[1773249721868,21.5427641,87.133,87.093,13.92076823]
[1773249722067,21.62107462,87.167,87.096,13.92076823]
[1773249722370,21.62107462,87.167,87.106,13.92076823]
[1773249722569,21.62107462,87.165,87.106,13.92076823]
[1773249723565,21.62181481,87.163,87.102,13.92076823]
[1773249724866,16.5639511,87.152,87.092,13.92076823]
[1773249725066,16.5639511,87.152,87.087,13.92076823]
[1773249726371,16.55470562,87.142,87.09,10.332]
[1773249726669,16.55470562,87.142,87.088,13.92076823]
[1773249726869,16.55470562,87.142,87.078,13.92076823]
[1773249727073,16.55470562,87.142,87.066,20.81577166]
[1773249727268,16.55470562,87.142,87.089,10.47130251]
[1773249728369,16.561297,87.131,87.089,10.47130251]
[1773249730277,16.561297,87.131,87.09,10.47130251]
[1773249730675,16.561297,87.131,87.086,10.47130251]
[1773249731676,16.561297,87.131,87.09,10.47130251]
[1773249731880,16.561297,87.131,87.091,10.332]
[1773249732171,16.561297,87.131,87.065,14.46]
[1773249732172,16.60257001,87.148,87.1,10.47130251]
[1773249732372,16.60257001,87.148,87.106,10.47130251]
[1773249733068,16.60257001,87.148,87.114,10.47130251]
[1773249733368,16.60257001,87.148,87.11,10.47130251]
[1773249734277,16.60257001,87.148,87.11,20.80130251]
[1773249734479,16.60257001,87.148,87.089,13.96482417]
[1773249734678,16.60257001,87.148,87.085,13.96482417]
[1773249734878,11.22021271,87.135,87.086,10.332]
[1773249735774,11.22096926,87.131,87.075,13.96482417]
[1773249735979,11.22096926,87.131,87.069,13.96482417]
[1773249736181,11.22096926,87.131,87.068,13.96482417]
[1773249736777,11.22961712,87.114,87.066,10.335]
[1773249736973,11.22961712,87.114,87.064,13.96482417]
[1773249737174,11.22961712,87.114,87.029,13.96482417]
[1773249737478,14.46,87.151,87.033,10.339]
[1773249737479,11.23052916,87.083,87.033,10.339]
[1773249737878,11.23052916,87.083,87.009,14.46]
[1773249738081,11.36527755,87.075,87.021,10.34]
[1773249738275,11.36527755,87.075,87.009,14.46]
[1773249740583,11.36527755,87.075,87.035,10.339]
[1773249741586,11.3999715,87.088,87.035,10.339]
[1773249742679,11.3999715,87.088,87.045,10.337]
[1773249742986,11.3999715,87.088,87.015,13.96482417]
[1773249743288,11.3999715,87.088,87.013,13.96482417]
[1773249744287,11.3999715,87.088,87.012,13.96482417]
[1773249744489,11.3999715,87.088,87.043,10.338]
[1773249747294,11.39802884,87.08,87.02,13.96482417]
[1773249747500,11.39802884,87.08,87.016,14.46]
[1773249747988,11.39802884,87.08,87.033,10.339]
[1773249749790,11.39802884,87.08,87.04,10.338]
[1773249749995,11.39802884,87.08,87.019,13.96482417]
[1773249750193,6.14356434,87.11,87.019,13.96482417]
[1773249750386,20.654,87.134,87.01,6.14356434]
[1773249750387,11.26801365,87.12,87.047,13.96482417]
[1773249750697,11.26801365,87.12,87.044,14.46]
[1773249750995,11.26801365,87.12,87.037,14.46]
[1773249751196,11.26801365,87.12,87.034,28.42482417]
[1773249751394,11.26801365,87.12,87.035,13.96482417]
[1773249751688,11.26801365,87.12,87.034,14.46]
[1773249751889,11.26883509,87.098,87.045,10.337]
[1773249753393,11.22409327,87.097,87.045,10.337]
[1773249753592,11.22409327,87.097,87.037,10.338]
[1773249753895,11.22409327,87.097,87.023,13.96482417]
[1773249754493,11.20336744,87.081,87.023,13.96482417]
[1773249754793,11.20336744,87.081,87.021,10.34]
[1773249756496,11.18001967,87.074,87.021,10.34]
[1773249757588,11.18001967,87.074,87.034,10.339]
[1773249757790,11.18058522,87.109,87.024,13.96482417]
[1773249757987,11.18058522,87.109,87.035,13.96482417]
[1773249758198,11.1851626,87.09,87.035,10.339]
[1773249758398,11.1851626,87.09,87.029,13.96482417]
[1773249758691,11.1851626,87.085,87.03,24.30382417]
[1773249759094,11.1851626,87.085,87.03,13.96482417]
[1773249759299,13.94258326,87.184,87.03,13.96482417]
[1773249759300,11.18572367,87.149,87.048,13.96482417]
[1773249759598,11.18572367,87.149,87.06,13.96482417]
[1773249759798,11.18572367,87.116,87.065,10.335]
[1773249760502,11.18572367,87.116,87.066,13.96482417]
[1773249760701,11.18572367,87.116,87.067,13.96482417]
[1773249761610,11.18572367,87.116,87.08,10.333]
[1773249763010,11.18572367,87.116,87.072,10.334]
[1773249763917,11.23089694,87.113,87.064,10.335]
[1773249764819,11.23089694,87.113,87.054,13.96482417]
[1773249765015,11.23089694,87.113,87.052,28.42482417]
[1773249766119,11.23089694,87.113,87.056,13.96482417]
[1773249766413,11.23089694,87.113,87.052,28.42482417]
[1773249766611,11.23089694,87.113,87.056,13.96482417]
[1773249766812,11.23089694,87.113,87.052,28.42482417]
[1773249767116,21.54883771,87.111,87.069,10.335]
[1773249767318,11.21883771,87.11,87.052,14.46]
[1773249767517,11.21883771,87.108,87.062,10.335]
[1773249768014,11.21883771,87.108,87.057,13.96482417]
[1773249768314,11.25372624,87.124,87.062,13.96482417]
[1773249768617,11.25372624,87.124,87.063,13.96482417]
[1773249769020,10.329,87.119,87.072,10.334]
[1773249770717,11.25372624,87.124,87.078,10.333]
[1773249771315,11.25372624,87.124,87.058,13.96482417]
[1773249771519,11.25372624,87.124,87.057,13.96482417]
[1773249771716,11.25372624,87.124,87.061,13.96482417]
[1773249772110,11.25372624,87.124,87.06,13.96482417]
[1773249772311,11.15282761,87.117,87.071,10.334]
[1773249773224,11.15282761,87.117,87.077,10.334]
[1773249775518,11.15282761,87.117,87.061,13.96482417]
[1773249777220,11.15282761,87.117,87.062,13.96482417]
[1773249777422,11.15282761,87.117,87.076,10.334]
[1773249778425,11.20746121,87.115,87.064,13.96482417]
[1773249778626,11.20746121,87.115,87.06,13.96482417]
[1773249779125,11.20746121,87.115,87.059,13.96482417]
[1773249779418,20.65,87.152,87.047,14.46]
[1773249779419,11.20791424,87.11,87.062,10.335]
[1773249780224,10.33,87.109,87.062,24.29982417]
[1773249780428,11.21177617,87.108,87.062,10.335]
[1773249781221,11.21177617,87.108,87.062,24.29982417]
[1773249781426,10.331,87.104,87.062,24.29982417]
[1773249782327,10.331,87.104,87.05,20.81577166]
[1773249782328,11.20132116,87.103,87.05,13.96482417]
[1773249782527,11.20132116,87.103,87.046,13.96482417]
[1773249782728,11.20132116,87.103,87.05,2.45986719]
[1773249783130,11.20132116,87.103,87.05,16.42469136]
[1773249783926,11.20132116,87.103,87.06,2.45986719]
[1773249784127,11.20132116,87.103,87.07,2.45986719]
[1773249784529,11.20132116,87.103,87.073,10.334]
[1773249786034,11.18014448,87.132,87.09,2.45986719]
[1773249787031,11.18014448,87.132,87.1,2.45986719]
[1773249787332,11.18051256,87.145,87.1,2.45986719]
[1773249789237,11.18051256,87.145,87.11,2.45986719]
[1773249789628,11.18051256,87.145,87.102,13.96482417]
[1773249789939,11.18051256,87.145,87.098,13.96482417]
[1773249790436,11.18051256,87.145,87.11,10.33]
[1773249790630,11.17363395,87.163,87.1,6.14275887]
[1773249790831,11.17363395,87.163,87.11,13.96482417]
[1773249791133,11.17363395,87.163,87.109,13.96482417]
[1773249791732,14.46,87.19,87.104,13.96482417]
[1773249791733,11.1739761,87.159,87.104,13.96482417]
[1773249791929,11.1739761,87.159,87.099,13.96482417]
[1773249792328,11.1739761,87.159,87.092,14.46]
[1773249792329,11.1739761,87.159,87.103,13.96482417]
[1773249792839,11.17547695,87.147,87.097,13.96482417]
[1773249794140,11.17547695,87.147,87.096,13.96482417]
[1773249794341,11.17547695,87.147,87.101,10.331]
[1773249794541,11.17547695,87.147,87.108,10.48578171]
[1773249794742,11.17547695,87.147,87.107,10.48578171]
[1773249795343,11.30148416,87.143,87.107,10.48578171]
[1773249796244,11.30148416,87.143,87.106,10.48578171]
[1773249797335,11.30148416,87.143,87.106,20.81578171]
[1773249797536,11.36488798,87.159,87.106,20.81578171]
[1773249798146,11.36488798,87.159,87.106,10.33]
[1773249798344,11.36488798,87.159,87.106,20.81578171]
[1773249799544,11.41817137,87.156,87.106,20.81578171]
[1773249799746,11.41817137,87.156,87.088,14.46]
[1773249799747,11.41817137,87.156,87.111,10.48578171]
[1773249800350,11.41817137,87.156,87.114,10.329]
[1773249801355,11.41817137,87.156,87.114,10.48578171]
[1773249801545,11.41831335,87.153,87.11,10.48578171]
[1773249802346,11.41831335,87.153,87.111,10.48578171]
[1773249802744,11.41831335,87.153,87.115,10.48578171]
[1773249803248,11.41831335,87.153,87.116,10.48578171]
[1773249803450,10.325,87.151,87.116,10.48578171]
[1773249803642,11.41937174,87.15,87.115,10.48578171]
[1773249804242,10.325,87.149,87.116,10.48578171]
[1773249804446,11.46069583,87.148,87.116,10.48578171]
[1773249804850,11.46069583,87.148,87.112,10.48578171]
[1773249805050,10.325,87.147,87.112,10.48578171]
[1773249805252,11.46069583,87.148,87.108,0.00078171]
[1773249805448,11.46069583,87.148,87.092,13.96482417]
[1773249806048,11.46069583,87.148,87.091,13.96482417]
[1773249806451,11.44728546,87.137,87.092,10.332]
[1773249807645,10.327,87.136,87.092,10.332]
[1773249807847,11.4478585,87.135,87.092,10.332]
[1773249808742,11.55130859,87.13,87.079,13.96482417]
[1773249808944,11.55130859,87.13,87.078,13.96482417]
[1773249809141,11.55130859,87.13,87.079,13.96482417]
[1773249809546,11.55130859,87.13,87.08,2.4585489]
[1773249810445,11.55315544,87.124,87.08,2.4585489]
[1773249811048,11.55381498,87.119,87.07,2.4585489]
[1773249811248,11.55381498,87.119,87.071,13.96482417]
[1773249811449,11.55381498,87.119,87.07,2.4585489]
[1773249811754,11.55381498,87.119,87.055,14.46]
[1773249811755,11.55381498,87.119,87.08,2.4585489]
[1773249811952,21.88281498,87.119,87.08,2.4585489]
[1773249812453,11.54935327,87.118,87.08,2.4585489]
[1773249813454,10.329,87.116,87.08,2.4585489]
[1773249814046,11.54935327,87.118,87.09,2.4585489]
[1773249814354,11.5347056,87.132,87.1,2.4585489]
[1773249816746,21.86095255,87.147,87.11,2.4585489]
[1773249816952,203.37939909,87.202,87.091,8.86365823]
[1773249816953,8.68645052,87.139,87.091,8.86365823]
[1773249817253,8.68645052,87.139,87.1,21.65320713]
[1773249817454,8.68645052,87.139,87.11,2.4585489]
[1773249820253,8.68645052,87.153,87.12,2.4585489]
[1773249821052,8.68645052,87.153,87.111,9.11028107]
[1773249821258,8.68373297,87.151,87.107,10.33]
[1773249821659,8.68373297,87.148,87.1,12.78854252]
[1773249822159,8.68373297,87.148,87.101,9.11028107]
[1773249822759,8.68373297,87.148,87.11,11.56782359]
[1773249823355,8.68373297,87.148,87.11,2.45754252]
[1773249823858,19.00873297,87.147,87.11,2.45754252]
[1773249824463,8.68373297,87.146,87.103,10.33]
[1773249825064,8.68373297,87.17,87.121,9.11028107]
[1773249825569,8.68373297,87.17,87.13,2.45754252]
[1773249826265,8.68373297,87.17,87.121,9.11028107]
[1773249826457,8.68373297,87.168,87.124,10.328]
[1773249827366,8.68373297,87.183,87.14,2.45754252]
[1773249827567,8.68373297,87.183,87.15,2.45754252]
[1773249828065,192.68426636,87.202,87.15,2.45754252]
[1773249828066,8.68373297,87.202,87.15,2.45754252]
[1773249828269,8.68373297,87.202,87.16,2.45754252]
[1773249829067,8.68373297,87.239,87.17,2.45754252]
[1773249829266,8.68373297,87.239,87.18,2.45754252]
[1773249830464,8.96361637,87.221,87.18,2.45754252]
[1773249830766,8.96361637,87.221,87.171,10.322]
[1773249831270,8.96361637,87.216,87.17,2.45754252]
[1773249831764,8.96361637,87.216,87.18,2.45754252]
[1773249833166,8.96361637,87.216,87.18,1.88382564]
[1773249835664,10.317,87.215,87.18,1.88382564]
[1773249835868,8.96361637,87.215,87.18,1.88382564]
[1773249836068,8.96361637,87.215,87.117,20.658]
[1773249836069,8.96361637,87.215,87.16,2.45754252]
[1773249837372,10.32,87.194,87.16,2.45754252]
[1773249837874,8.96361637,87.193,87.138,9.09283037]
[1773249838174,8.96361637,87.193,87.16,2.45754252]
[1773249838776,8.96361637,87.183,87.134,10.327]
[1773249838976,8.96361637,87.183,87.14,2.45754252]
[1773249839276,8.96361637,87.183,87.15,2.45754252]
[1773249841073,8.96361637,87.183,87.065,34.44]
[1773249841074,8.96361637,87.172,87.089,9.09283037]
[1773249841278,8.96361637,87.172,87.12,2.45754252]
[1773249842481,10.324,87.159,87.12,2.45754252]
[1773249842678,10.324,87.159,87.13,2.45754252]
[1773249843673,10.323,87.168,87.14,2.45754252]
[1773249844679,10.323,87.164,87.13,2.45754252]
[1773249846379,8.96361637,87.149,87.079,9.09283037]
[1773249846583,160.548,87.188,87.06,2.45754252]
[1773249846584,8.96361637,87.119,87.06,2.45754252]
[1773249848476,10.331,87.102,87.06,2.45754252]
[1773249849781,8.96361637,87.092,87.041,10.338]
[1773249849986,8.96361637,87.092,87.05,2.45754252]
[1773249850685,8.96361637,87.106,87.06,2.45754252]
[1773249851486,8.96361637,87.104,87.06,2.45754252]
[1773249851886,8.96361637,87.129,87.07,2.45754252]
[1773249852186,2.45754252,87.13,87.07,2.45754252]
[1773249852187,10.33,87.107,87.07,2.45754252]
[1773249852786,19.29361637,87.107,87.07,2.45754252]
[1773249854086,8.96361637,87.106,87.07,2.45754252]
[1773249854288,8.96361637,87.106,87.061,9.09283037]
[1773249855191,8.96361637,87.106,87.07,2.45754252]
[1773249857289,8.96361637,87.123,87.071,9.09283037]
[1773249857588,8.96361637,87.123,87.08,2.45754252]
[1773249858182,8.96361637,87.123,87.071,9.09283037]
[1773249858893,8.96361637,87.12,87.071,9.09283037]
[1773249860494,9.55083984,87.116,87.071,9.09283037]
[1773249860689,9.55083984,87.116,87.057,8.88320029]
[1773249860990,9.55083984,87.116,87.06,2.45754252]
[1773249861494,9.55083984,87.113,87.065,10.335]
[1773249861693,9.55083984,87.113,87.07,2.45754252]
[1773249862197,9.55083984,87.127,87.083,10.333]
[1773249862790,9.55083984,87.125,87.071,8.88320029]
[1773249863392,9.55083984,87.125,87.08,2.45754252]
[1773249864697,14.46,87.166,87.032,309.06369661]
[1773249864698,9.55083984,87.149,87.091,8.88320029]
[1773249864993,9.55083984,87.179,87.11,2.45754252]
[1773249865195,9.55083984,87.179,87.13,2.45754252]
[1773249865793,9.55083984,87.251,87.151,8.88320029]
[1773249866104,9.55083984,87.251,87.17,8.88320029]
[1773249866293,9.55083984,87.251,87.152,34.44]
[1773249866294,9.55083984,87.251,87.188,8.88320029]
[1773249866616,9.55083984,87.251,87.175,10.37237397]
[1773249866793,9.55083984,87.251,87.172,8.88320029]
[1773249866989,9.55083984,87.249,87.181,8.88320029]
[1773249867290,9.55083984,87.239,87.19,2.45754252]
[1773249867491,9.55083984,87.239,87.154,260.61076673]
[1773249867492,2.45754252,87.23,87.158,10.324]
[1773249867795,9.55083984,87.229,87.155,8.88320029]
[1773249867990,9.55083984,87.265,87.171,8.88320029]
[1773249868190,9.55083984,87.265,87.191,8.88320029]
[1773249868600,9.55083984,87.265,87.192,8.88320029]
[1773249868903,9.55083984,87.265,87.201,8.88320029]
[1773249869292,9.55083984,87.283,87.201,8.88320029]
[1773249870498,9.55083984,87.28,87.201,8.88320029]
[1773249870902,9.55083984,87.272,87.201,8.88320029]
[1773249871698,9.55083984,87.267,87.201,8.88320029]
[1773249873400,9.55083984,87.267,87.184,8.88320029]
[1773249873613,9.55083984,87.259,87.184,8.88320029]
[1773249874200,9.55083984,87.255,87.164,8.88320029]
[1773249874709,9.55083984,87.237,87.164,8.88320029]
[1773249875005,9.55083984,87.237,87.144,8.88320029]
[1773249875205,9.55083984,87.237,87.16,8.88320029]
[1773249876208,9.55083984,87.237,87.163,8.88320029]
[1773249876706,10.315,87.236,87.163,8.88320029]
[1773249876908,9.55083984,87.235,87.144,8.88320029]
[1773249877296,9.55083984,87.235,87.16,8.88320029]
[1773249878109,9.55083984,87.231,87.16,8.88320029]
[1773249881297,8.70156943,87.259,87.17,6.13448848]
[1773249881502,8.70156943,87.284,87.172,9.16522531]
[1773249881705,19.01156943,87.274,87.191,9.16522531]
[1773249882009,8.70156943,87.274,87.206,9.16522531]
[1773249882206,8.70156943,87.272,87.181,9.16522531]
[1773249882602,8.70156943,87.272,87.207,10.318]
[1773249883307,8.70156943,87.272,87.208,9.16522531]
[1773249883910,8.70156943,87.272,87.211,19.48322531]
[1773249884511,8.70156943,87.27,87.211,9.16522531]
[1773249885208,8.70156943,87.27,87.211,10.318]
[1773249885412,1.9945208,87.328,87.18,20.56836884]
[1773249885413,8.70156943,87.284,87.212,9.16522531]
[1773249885809,1.9945208,87.328,87.23,10.315]
[1773249885810,10.307,87.299,87.23,10.315]
[1773249886009,8.70156943,87.298,87.23,9.16522531]
[1773249886211,8.70156943,87.298,87.187,13.71806083]
[1773249886212,8.70156943,87.298,87.201,9.16522531]
[1773249887306,10.311,87.27,87.208,9.16522531]
[1773249887513,8.70156943,87.269,87.208,9.16522531]
[1773249887712,8.70156943,87.269,87.181,9.16522531]
[1773249888009,10.312,87.257,87.181,9.16522531]
[1773249888210,8.70156943,87.256,87.181,9.16522531]
[1773249888412,8.70156943,87.249,87.153,9.16522531]